fUSD/lending_fUSD_20240519
["ID","MTS","AMOUNT","RATE_DAILY","PERIOD"]
[327445814,1716077489486,-151.0,0.00029041,7]
[327445815,1716077489495,-1314.57,0.00029041,2]
[327445816,1716077489505,-2275.44,0.00029041,2]
[327445817,1716077489514,-574.86,0.00029041,2]
[327445818,1716077489523,-500.0,0.00029041,2]
[327445819,1716077489533,-511.71,0.00029041,2]
[327445820,1716077489542,-500.0,0.00029041,2]
[327445821,1716077489551,-2814.42,0.00029041,2]
[327445822,1716077489560,-500.0,0.00029041,2]
[327445823,1716077489570,-501.32,0.00029041,2]
[327445824,1716077489579,-500.0,0.00029041,2]
[327445825,1716077489589,-1303.92,0.00029041,2]
[327445826,1716077489598,-810.63,0.00029041,2]
[327445827,1716077489608,-500.0,0.00029041,2]
[327445828,1716077489618,-4678.13,0.00029041,2]
[327445829,1716077489627,-500.0,0.00029041,2]
[327445830,1716077489637,-2780.12,0.00029041,2]
[327445831,1716077489646,-516.01,0.00029041,2]
[327445832,1716077489655,-887.4,0.00029041,2]
[327445833,1716077489665,-500.0,0.00029041,2]
[327445834,1716077489674,-514.0,0.00029041,2]
[327445835,1716077489687,-725.59,0.00029041,2]
[327445836,1716077489696,-500.0,0.00029041,2]
[327445837,1716077489706,-1154.5,0.00029041,2]
[327445838,1716077489715,-500.0,0.00029041,2]
[327445839,1716077489726,-1503.52,0.00029041,2]
[327445840,1716077489736,-500.0,0.00029041,2]
[327445841,1716077489745,-1444.2,0.00029041,2]
[327445842,1716077489755,-500.0,0.00029041,2]
[327445843,1716077489767,-1032.28,0.00029041,2]
[327445844,1716077489777,-500.0,0.00029041,2]
[327445845,1716077489786,-500.0,0.00029041,2]
[327445846,1716077489796,-500.0,0.00029041,2]
[327445847,1716077489806,-1522.9,0.00029041,2]
[327445848,1716077489815,-561.95,0.00029041,2]
[327445849,1716077489825,-7233.9,0.00029041,2]
[327445850,1716077489834,-776.17,0.00029041,2]
[327445851,1716077489844,-500.0,0.00029041,2]
[327445852,1716077489855,-605.79,0.00029041,2]
[327445853,1716077489865,-1300.37,0.00029041,2]
[327445854,1716077489874,-1051.93,0.00029041,2]
[327445855,1716077489883,-500.0,0.00029041,2]
[327445856,1716077489892,-6024.88,0.00029041,2]
[327445857,1716077489901,-500.0,0.00029041,2]
[327445858,1716077489911,-5592.85,0.00029041,2]
[327445859,1716077489920,-151.0,0.00029041,7]
[327445860,1716077489930,-284.21791415,0.00029041,2]
[327445861,1716077489940,-1220.15,0.00029041,2]
[327445862,1716077489949,-11547.64,0.00029041,2]
[327445863,1716077489959,-500.0,0.00029041,2]
[327445864,1716077489968,-500.0,0.00029041,2]
[327445865,1716077489978,-151.0,0.00029041,7]
[327445866,1716077489988,-964.95,0.00029041,2]
[327445867,1716077489998,-500.0,0.00029041,2]
[327445868,1716077490008,-500.0,0.00029041,2]
[327445869,1716077490018,-730.61,0.00029041,2]
[327445870,1716077490028,-684.37,0.00029041,2]
[327445871,1716077490037,-2185.64,0.00029041,2]
[327445872,1716077490047,-523.440221,0.00029041,7]
[327445873,1716077490056,-1150.67,0.00029041,2]
[327445874,1716077490066,-500.0,0.00029041,2]
[327445875,1716077490075,-500.0,0.00029041,2]
[327445876,1716077490085,-922.42,0.00029041,2]
[327445877,1716077490094,-523.440221,0.00029041,7]
[327445878,1716077490104,-714.21,0.00029041,2]
[327445879,1716077490115,-667.74,0.00029041,2]
[327445880,1716077490124,-500.0,0.00029041,2]
[327445881,1716077490133,-624.56,0.00029041,2]
[327445882,1716077490143,-500.0,0.00029041,2]
[327445883,1716077490152,-253.455997,0.00029041,7]
[327445884,1716077490162,-472.92232119,0.00029041,2]
[327445885,1716077490172,-785.83,0.00029041,2]
[327445886,1716077490181,-525.43747228,0.00029041,2]
[327445887,1716077490191,-488.33153516,0.00029041,2]
[327445888,1716077490201,-1993.35,0.00029041,2]
[327445889,1716077490211,-500.0,0.00029041,2]
[327445890,1716077490222,-253.455997,0.00029041,7]
[327445891,1716077490231,-500.0,0.00029041,2]
[327445892,1716077490241,-500.0,0.00029041,2]
[327445893,1716077490251,-593.18,0.00029041,2]
[327445894,1716077490261,-555.98,0.00029041,2]
[327445895,1716077490270,-500.0,0.00029041,2]
[327445896,1716077490282,-708.12,0.00029041,2]
[327445897,1716077490303,-1034.98,0.00029041,2]
[327445898,1716077490313,-500.0,0.00029041,2]
[327445899,1716077490323,-819.64,0.00029041,2]
[327445900,1716077490332,-1062.72,0.00029041,2]
[327445901,1716077490345,-500.0,0.00029041,2]
[327445902,1716077490355,-614.07,0.00029041,2]
[327445903,1716077490365,-500.0,0.00029041,2]
[327445904,1716077490374,-609.38,0.00029041,2]
[327445905,1716077490384,-500.0,0.00029041,2]
[327445906,1716077490393,-6648.46,0.00029041,2]
[327445907,1716077490403,-1688.51,0.00029041,2]
[327445908,1716077490412,-186.431819,0.00029041,7]
[327445909,1716077490421,-564.19,0.00029041,2]
[327445910,1716077490430,-151.0,0.00029041,7]
[327445911,1716077490439,-1089.3,0.00029041,2]
[327445912,1716077490448,-186.431819,0.00029041,7]
[327445913,1716077490458,-151.0,0.00029041,7]
[327445914,1716077490467,-846.78,0.00029041,2]
[327445915,1716077490477,-1349.04,0.00029041,2]
[327445916,1716077490486,-830.23,0.00029041,2]
[327445917,1716077490495,-1320.84572778,0.00029041,2]
[327445918,1716077490935,-232.49427222,0.00029041,2]
[327445919,1716077490945,-152.34041471,0.00029041,2]
[327445920,1716077490957,-357.99,0.00029041,2]
[327445921,1716077490972,-798.34958529,0.00029041,2]
[327445922,1716077490988,-860.44,0.00029041,2]
[327445923,1716077490998,-608.58,0.00029041,2]
[327445924,1716077491008,-575.40659085,0.00029041,2]
[327445925,1716077491082,-236.87340915,0.00029041,2]
[327445926,1716077491092,-500.0,0.00029041,2]
[327445927,1716077491101,-433.86837214,0.00029041,2]
[327445928,1716077491112,-66.13162786,0.00029041,2]
[327445929,1716077491123,-532.91945962,0.00029041,2]
[327445930,1716077491132,-151.0,0.00029041,7]
[327445931,1716077491141,-792.67,0.00029041,2]
[327445932,1716077491150,-500.0,0.00029041,2]
[327445933,1716077491158,-333.76719225,0.00029041,2]
[327445934,1716077491634,-279.65756635,0.00010857,2]
[327445935,1716077491645,-1060.0,0.00023371,2]
[327445936,1716077491655,-631.811,0.00026371,2]
[327445937,1716077491665,-500.0,0.00027397,2]
[327445938,1716077491674,-500.0,0.00027397,2]
[327445939,1716077491688,-500.0,0.00027397,2]
[327445940,1716077491697,-500.0,0.00027397,2]
[327445941,1716077491706,-500.0,0.00027671,2]
[327445942,1716077491715,-500.0,0.00027671,2]
[327445943,1716077491725,-500.0,0.00027671,2]
[327445944,1716077491735,-500.0,0.00027945,2]
[327445945,1716077491744,-500.0,0.00027945,2]
[327445946,1716077491754,-500.0,0.00027945,2]
[327445947,1716077491766,-500.0,0.00028219,2]
[327445948,1716077491775,-500.0,0.00028219,2]
[327445949,1716077491787,-500.0,0.00028493,2]
[327445950,1716077491798,-500.0,0.00028493,2]
[327445951,1716077491807,-500.0,0.00028493,2]
[327445952,1716077491816,-500.0,0.00028767,2]
[327445953,1716077491825,-500.0,0.00028767,2]
[327445954,1716077491835,-500.0,0.00028767,2]
[327445955,1716077491844,-1382.25280775,0.00029041,2]
[327445956,1716077491854,-613.67,0.00029041,2]
[327445957,1716077491863,-2023.97,0.00029041,2]
[327445958,1716077491873,-616.74,0.00029041,2]
[327445959,1716077491883,-673.43,0.00029041,2]
[327445960,1716077491892,-4593.99,0.00029041,2]
[327445961,1716077491902,-519.79,0.00029041,2]
[327445962,1716077491911,-525.03,0.00029041,2]
[327445963,1716077491921,-500.0,0.00029041,2]
[327445964,1716077491930,-224.890398,0.00029041,7]
[327445965,1716077491940,-1670.46,0.00029041,2]
[327445966,1716077491949,-703.22,0.00029041,2]
[327445967,1716077491959,-500.0,0.00029041,2]
[327445968,1716077491968,-500.0,0.00029041,2]
[327445969,1716077491977,-500.0,0.00029041,2]
[327445970,1716077491986,-936.93,0.00029041,2]
[327445971,1716077491996,-224.890398,0.00029041,7]
[327445972,1716077492006,-500.0,0.00029041,2]
[327445973,1716077492016,-894.82,0.00029041,2]
[327445974,1716077492026,-500.0,0.00029041,2]
[327445975,1716077492035,-500.0,0.00029041,2]
[327445976,1716077492044,-500.0,0.00029041,2]
[327445977,1716077492056,-500.0,0.00029041,2]
[327445978,1716077492066,-500.0,0.00029041,2]
[327445979,1716077492075,-695.82,0.00029041,2]
[327445980,1716077492084,-715.76,0.00029041,2]
[327445981,1716077492093,-3124.26,0.00029041,2]
[327445982,1716077492102,-500.0,0.00029041,2]
[327445983,1716077492114,-500.0,0.00029041,2]
[327445984,1716077492123,-151.0,0.00029041,7]
[327445985,1716077492133,-510.06,0.00029041,2]
[327445986,1716077492142,-500.0,0.00029041,2]
[327445987,1716077492151,-877.57,0.00029041,2]
[327445988,1716077492160,-500.0,0.00029041,2]
[327445989,1716077492170,-1656.39,0.00029041,2]
[327445990,1716077492179,-743.1,0.00029041,2]
[327445991,1716077492188,-6564.04,0.00029041,2]
[327445992,1716077492197,-641.49,0.00029041,2]
[327445993,1716077492207,-4260.91,0.00029041,2]
[327445994,1716077492216,-500.0,0.00029041,2]
[327445995,1716077492225,-697.34,0.00029041,2]
[327445996,1716077492234,-2763.02,0.00029041,2]
[327445997,1716077492243,-858.1,0.00029041,2]
[327445998,1716077492252,-500.0,0.00029041,2]
[327445999,1716077492262,-1870.09,0.00029041,2]
[327446000,1716077492271,-500.0,0.00029041,2]
[327446001,1716077492280,-500.0,0.00029041,2]
[327446002,1716077492290,-1489.33,0.00029041,2]
[327446003,1716077492299,-500.0,0.00029041,2]
[327446004,1716077492309,-500.0,0.00029041,2]
[327446005,1716077492318,-624.28,0.00029041,2]
[327446006,1716077492327,-1876.67,0.00029041,2]
[327446007,1716077492336,-3030.58,0.00029041,2]
[327446008,1716077492344,-224.907381,0.00029041,7]
[327446009,1716077492354,-151.0,0.00029041,7]
[327446010,1716077492363,-1754.2,0.00029041,2]
[327446011,1716077492374,-151.0,0.00029041,7]
[327446012,1716077492383,-4440.09,0.00029041,2]
[327446013,1716077492392,-500.0,0.00029041,2]
[327446014,1716077492401,-500.0,0.00029041,2]
[327446015,1716077492411,-500.0,0.00029041,2]
[327446016,1716077492421,-919.75,0.00029041,2]
[327446017,1716077492432,-500.0,0.00029041,2]
[327446018,1716077492442,-747.95,0.00029041,2]
[327446019,1716077492452,-1492.23,0.00029041,2]
[327446020,1716077492461,-796.81,0.00029041,2]
[327446021,1716077492471,-151.0,0.00029041,7]
[327446022,1716077492480,-4084.75,0.00029041,2]
[327446023,1716077492489,-500.0,0.00029041,2]
[327446024,1716077492498,-500.0,0.00029041,2]
[327446025,1716077492507,-500.0,0.00029041,2]
[327446026,1716077492517,-759.03,0.00029041,2]
[327446027,1716077492526,-500.0,0.00029041,2]
[327446028,1716077492536,-500.0,0.00029041,2]
[327446029,1716077492545,-842.68,0.00029041,2]
[327446030,1716077492556,-1573.17,0.00029041,2]
[327446031,1716077492566,-500.0,0.00029041,2]
[327446032,1716077492576,-294.72423228,0.00029041,2]
[327446033,1716077492585,-500.0,0.00029041,2]
[327446034,1716077492594,-500.0,0.00029041,2]
[327446035,1716077492604,-1661.92,0.00029041,2]
[327446036,1716077492614,-500.0,0.00029041,2]
[327446037,1716077492624,-1958.77,0.00029041,2]
[327446038,1716077492633,-1716.41,0.00029041,2]
[327446039,1716077492642,-500.0,0.00029041,2]
[327446040,1716077492652,-500.0,0.00029041,2]
[327446041,1716077492662,-682.52,0.00029041,2]
[327446042,1716077492671,-612.02,0.00029041,2]
[327446043,1716077492683,-500.0,0.00029041,2]
[327446044,1716077492693,-350.64823801,0.00029041,2]
[327446045,1716077492703,-691.49,0.00029041,2]
[327446046,1716077492714,-1225.99,0.00029041,2]
[327446047,1716077492723,-500.0,0.00029041,2]
[327446048,1716077492734,-504.06,0.00029041,2]
[327446049,1716077492743,-4495.909897,0.00029041,7]
[327446050,1716077492753,-1815.65,0.00029041,2]
[327446051,1716077492765,-500.0,0.00029041,2]
[327446052,1716077492775,-2018.48,0.00029041,2]
[327446053,1716077492786,-151.0,0.00029041,7]
[327446054,1716077492796,-1716.75,0.00029041,2]
[327446055,1716077492807,-980.98,0.00029041,2]
[327446056,1716077492817,-4495.909897,0.00029041,7]
[327446057,1716077492828,-908.4,0.00029041,2]
[327446058,1716077492839,-519.812481,0.00029041,7]
[327446059,1716077492849,-224.56093341,0.00029041,2]
[327446060,1716077492859,-500.0,0.00029041,2]
[327446061,1716077492870,-519.812481,0.00029041,7]
[327446062,1716077492880,-1124.01,0.00029041,2]
[327446063,1716077492889,-2424.02,0.00029041,2]
[327446064,1716077492900,-500.0,0.00029041,2]
[327446065,1716077492910,-500.0,0.00029041,2]
[327446066,1716077492920,-1936.72,0.00029041,2]
[327446067,1716077492929,-1249.4,0.00029041,2]
[327446068,1716077492939,-500.0,0.00029041,2]
[327446069,1716077492949,-2316.41,0.00029041,2]
[327446070,1716077492958,-500.0,0.00029041,2]
[327446071,1716077492968,-1024.15,0.00029041,2]
[327446072,1716077492978,-895.6,0.00029041,2]
[327446073,1716077492988,-543.68,0.00029041,2]
[327446074,1716077492997,-434.9,0.00029041,2]
[327446075,1716077493007,-500.0,0.00029041,2]
[327446076,1716077493017,-570.19,0.00029041,2]
[327446077,1716077493027,-1154.19,0.00029041,2]
[327446078,1716077493037,-709.56,0.00029041,2]
[327446079,1716077493047,-500.0,0.00029041,2]
[327446080,1716077493056,-1378.01,0.00029041,2]
[327446081,1716077493066,-1873.84,0.00029041,2]
[327446082,1716077493075,-503.15,0.00029041,2]
[327446083,1716077493084,-469.73199852,0.00029041,2]
[327446084,1716077493094,-151.0,0.00029041,7]
[327446085,1716077493103,-2689.46,0.00029041,2]
[327446086,1716077493112,-842.94,0.00029041,2]
[327446087,1716077493123,-956.07,0.00029041,2]
[327446088,1716077493133,-500.0,0.00029041,2]
[327446089,1716077493143,-500.0,0.00029041,2]
[327446090,1716077493152,-500.0,0.00029041,2]
[327446091,1716077493161,-1409.03,0.00029041,2]
[327446092,1716077493170,-1542.92,0.00029041,2]
[327446093,1716077493180,-633.54,0.00029041,2]
[327446094,1716077493190,-189.289376,0.00029041,7]
[327446095,1716077493199,-4096.02,0.00029041,2]
[327446096,1716077493209,-2212.12,0.00029041,2]
[327446097,1716077493218,-500.0,0.00029041,2]
[327446098,1716077493227,-695.04,0.00029041,2]
[327446099,1716077493237,-1365.15,0.00029041,2]
[327446100,1716077493246,-500.0,0.00029041,2]
[327446101,1716077493256,-500.0,0.00029041,2]
[327446102,1716077493265,-500.0,0.00029041,2]
[327446103,1716077493275,-1557.76,0.00029041,2]
[327446104,1716077493284,-500.0,0.00029041,2]
[327446105,1716077493293,-432.91032016,0.00029041,2]
[327446106,1716077493302,-500.0,0.00029041,2]
[327446107,1716077493311,-500.0,0.00029041,2]
[327446108,1716077493321,-2000.0,0.00029074,2]
[327446109,1716077493330,-200.0,0.00029074,2]
[327446110,1716077493339,-247.3,0.00029109,7]
[327446111,1716077493348,-24402.06098748,0.00029281,2]
[327446112,1716077493359,-360.09365647,0.00029281,2]
[327446113,1716077493369,-500.0,0.00029315,2]
[327446114,1716077493379,-500.0,0.00029315,2]
[327446115,1716077493388,-500.0,0.00029315,2]
[327446116,1716077493398,-500.0,0.00029315,2]
[327446117,1716077493406,-210.57465271,0.00029315,2]
[327446118,1716077493415,-500.0,0.00029315,2]
[327446119,1716077493425,-500.0,0.00029315,2]
[327446120,1716077493434,-500.0,0.00029315,2]
[327446121,1716077493444,-561.71,0.00029315,2]
[327446122,1716077493453,-674.49,0.00029315,2]
[327446123,1716077493462,-702.65,0.00029315,2]
[327446124,1716077493471,-500.0,0.00029315,2]
[327446125,1716077493481,-689.69,0.00029315,2]
[327446126,1716077493490,-330.4256384,0.00029315,2]
[327446127,1716077493499,-580.84,0.00029315,2]
[327446128,1716077493508,-500.0,0.00029315,2]
[327446129,1716077493518,-500.0,0.00029315,2]
[327446130,1716077493527,-612.31,0.00029315,2]
[327446131,1716077493536,-961.14,0.00029315,2]
[327446132,1716077493546,-540.22,0.00029315,2]
[327446133,1716077493555,-1047.34,0.00029315,2]
[327446134,1716077493565,-500.0,0.00029315,2]
[327446135,1716077493574,-500.0,0.00029315,2]
[327446136,1716077493584,-867.44,0.00029315,2]
[327446137,1716077493593,-500.0,0.00029315,2]
[327446138,1716077493602,-500.0,0.00029315,2]
[327446139,1716077493612,-505.05,0.00029315,2]
[327446140,1716077493622,-500.0,0.00029315,2]
[327446141,1716077493631,-500.0,0.00029315,2]
[327446142,1716077493642,-500.0,0.00029315,2]
[327446143,1716077493652,-575.74,0.00029315,2]
[327446144,1716077493661,-500.0,0.00029315,2]
[327446145,1716077493671,-1013.47,0.00029315,2]
[327446146,1716077493682,-500.0,0.00029315,2]
[327446147,1716077493693,-500.0,0.00029315,2]
[327446148,1716077493702,-500.0,0.00029315,2]
[327446149,1716077493712,-500.0,0.00029315,2]
[327446150,1716077493722,-500.0,0.00029315,2]
[327446151,1716077493733,-501.04,0.00029315,2]
[327446152,1716077493743,-500.0,0.00029315,2]
[327446153,1716077493752,-570.91,0.00029315,2]
[327446154,1716077493763,-450.81444161,0.00029315,2]
[327446155,1716077493773,-500.0,0.00029315,2]
[327446156,1716077493782,-500.0,0.00029315,2]
[327446157,1716077493792,-781.67,0.00029315,2]
[327446158,1716077493802,-500.0,0.00029315,2]
[327446159,1716077493811,-500.0,0.00029315,2]
[327446160,1716077493822,-500.0,0.00029315,2]
[327446161,1716077493833,-500.0,0.00029315,2]
[327446162,1716077493842,-859.88,0.00029315,2]
[327446163,1716077493852,-627.23,0.00029315,2]
[327446164,1716077493861,-644.06,0.00029315,2]
[327446165,1716077493872,-500.0,0.00029315,2]
[327446166,1716077493881,-500.0,0.00029315,2]
[327446167,1716077493891,-500.0,0.00029315,2]
[327446168,1716077493900,-500.0,0.00029315,2]
[327446169,1716077493910,-500.0,0.00029315,2]
[327446170,1716077493920,-840.81,0.00029315,2]
[327446171,1716077493929,-500.0,0.00029315,2]
[327446172,1716077493939,-670.91,0.00029315,2]
[327446173,1716077493948,-572.52,0.00029315,2]
[327446174,1716077493958,-500.0,0.00029315,2]
[327446175,1716077493967,-500.0,0.00029315,2]
[327446176,1716077493977,-500.0,0.00029315,2]
[327446177,1716077493987,-346.87994309,0.00029315,2]
[327446178,1716077493997,-1271.07,0.00029315,2]
[327446179,1716077494006,-598.75,0.00029315,2]
[327446180,1716077494015,-784.75,0.00029315,2]
[327446181,1716077494025,-524.04,0.00029315,2]
[327446182,1716077494034,-500.0,0.00029315,2]
[327446183,1716077494043,-975.28,0.00029315,2]
[327446184,1716077494053,-500.0,0.00029315,2]
[327446185,1716077494063,-555.23,0.00029315,2]
[327446186,1716077494072,-1270.09,0.00029315,2]
[327446187,1716077494082,-500.0,0.00029315,2]
[327446188,1716077494092,-502.82,0.00029315,2]
[327446189,1716077494102,-545.43,0.00029315,2]
[327446190,1716077494112,-567.78,0.00029315,2]
[327446191,1716077494122,-500.0,0.00029315,2]
[327446192,1716077494132,-1095.64,0.00029315,2]
[327446193,1716077494141,-500.0,0.00029315,2]
[327446194,1716077494151,-585.96,0.00029315,2]
[327446195,1716077494161,-1080.36,0.00029315,2]
[327446196,1716077494171,-500.0,0.00029315,2]
[327446197,1716077494180,-878.43,0.00029315,2]
[327446198,1716077494190,-674.73,0.00029315,2]
[327446199,1716077494199,-524.41,0.00029315,2]
[327446200,1716077494209,-756.34,0.00029315,2]
[327446201,1716077494219,-830.44,0.00029315,2]
[327446202,1716077494229,-598.7,0.00029315,2]
[327446203,1716077494238,-500.0,0.00029315,2]
[327446204,1716077494247,-500.0,0.00029315,2]
[327446205,1716077494257,-769.97,0.00029315,2]
[327446206,1716077494266,-521.56,0.00029315,2]
[327446207,1716077494275,-654.52,0.00029315,2]
[327446208,1716077494284,-500.0,0.00029315,2]
[327446209,1716077494294,-718.86,0.00029315,2]
[327446210,1716077494304,-762.02,0.00029315,2]
[327446211,1716077494313,-773.69,0.00029315,2]
[327446212,1716077494323,-500.0,0.00029315,2]
[327446213,1716077494332,-500.0,0.00029315,2]
[327446214,1716077494342,-879.32,0.00029315,2]
[327446215,1716077494351,-500.0,0.00029315,2]
[327446216,1716077494360,-807.43,0.00029315,2]
[327446217,1716077494370,-500.0,0.00029315,2]
[327446218,1716077494379,-500.0,0.00029315,2]
[327446219,1716077494389,-960.42,0.00029315,2]
[327446220,1716077494398,-500.0,0.00029315,2]
[327446221,1716077494407,-799.74,0.00029315,2]
[327446222,1716077494416,-500.0,0.00029315,2]
[327446223,1716077494425,-1421.89,0.00029315,2]
[327446224,1716077494435,-694.7,0.00029315,2]
[327446225,1716077494444,-500.0,0.00029315,2]
[327446226,1716077494454,-574.3,0.00029315,2]
[327446227,1716077494463,-748.48,0.00029315,2]
[327446228,1716077494474,-500.0,0.00029315,2]
[327446229,1716077494484,-500.0,0.00029315,2]
[327446230,1716077494493,-500.0,0.00029315,2]
[327446231,1716077494505,-780.69,0.00029315,2]
[327446232,1716077494515,-960.46,0.00029315,2]
[327446233,1716077494524,-214.23,0.00029315,2]
[327446234,1716077494535,-500.0,0.00029315,2]
[327446235,1716077494545,-500.0,0.00029315,2]
[327446236,1716077494556,-564.47,0.00029315,2]
[327446237,1716077494566,-500.0,0.00029315,2]
[327446238,1716077494576,-500.0,0.00029315,2]
[327446239,1716077494586,-500.0,0.00029315,2]
[327446240,1716077494597,-418.94569129,0.00029315,2]
[327446241,1716077494608,-1055.26,0.00029315,2]
[327446242,1716077494618,-1647.33,0.00029315,2]
[327446243,1716077494627,-500.0,0.00029315,2]
[327446244,1716077494640,-675.58,0.00029315,2]
[327446245,1716077494650,-500.0,0.00029315,2]
[327446246,1716077494659,-500.0,0.00029315,2]
[327446247,1716077494669,-500.0,0.00029315,2]
[327446248,1716077494679,-892.52,0.00029315,2]
[327446249,1716077494692,-500.0,0.00029315,2]
[327446250,1716077494701,-500.65240929,0.00029315,2]
[327446251,1716077494715,-696.4,0.00029315,2]
[327446252,1716077494728,-659.15,0.00029315,2]
[327446253,1716077494739,-975.45,0.00029315,2]
[327446254,1716077494750,-500.0,0.00029315,2]
[327446255,1716077494762,-500.0,0.00029315,2]
[327446256,1716077494772,-500.0,0.00029315,2]
[327446257,1716077494782,-500.0,0.00029315,2]
[327446258,1716077494792,-590.15,0.00029315,2]
[327446259,1716077494801,-500.0,0.00029315,2]
[327446260,1716077494811,-500.0,0.00029315,2]
[327446261,1716077494821,-151.0,0.00029315,7]
[327446262,1716077495056,-535.88,0.00029315,2]
[327446263,1716077495066,-500.0,0.00029315,2]
[327446264,1716077495075,-500.0,0.00029315,2]
[327446265,1716077495085,-500.0,0.00029315,2]
[327446266,1716077495095,-667.44,0.00029315,2]
[327446267,1716077495104,-500.0,0.00029315,2]
[327446268,1716077495114,-151.0,0.00029315,7]
[327446269,1716077495125,-619.54,0.00029315,2]
[327446270,1716077495134,-500.0,0.00029315,2]
[327446271,1716077495144,-151.0,0.00029315,7]
[327446272,1716077495153,-849.47,0.00029315,2]
[327446273,1716077495162,-690.93,0.00029315,2]
[327446274,1716077495172,-500.0,0.00029315,2]
[327446275,1716077495181,-629.780168,0.00029315,2]
[327446276,1716077495191,-902.26,0.00029315,2]
[327446277,1716077495200,-500.0,0.00029315,2]
[327446278,1716077495209,-500.0,0.00029315,2]
[327446279,1716077495218,-500.0,0.00029315,2]
[327446280,1716077495227,-500.0,0.00029315,2]
[327446281,1716077495237,-855.55,0.00029315,2]
[327446282,1716077495246,-297.6176555,0.00029315,2]
[327446283,1716077495255,-500.0,0.00029315,2]
[327446284,1716077495265,-500.0,0.00029315,2]
[327446285,1716077495275,-1577.42,0.00029315,2]
[327446286,1716077495284,-1068.89,0.00029315,2]
[327446287,1716077495293,-500.0,0.00029315,2]
[327446288,1716077495302,-820.23,0.00029315,2]
[327446289,1716077495311,-508.23,0.00029315,2]
[327446290,1716077495320,-609.88,0.00029315,2]
[327446291,1716077495329,-500.0,0.00029315,2]
[327446292,1716077495338,-500.0,0.00029315,2]
[327446293,1716077495347,-765.81,0.00029315,2]
[327446294,1716077495357,-500.0,0.00029315,2]
[327446295,1716077495368,-500.0,0.00029315,2]
[327446296,1716077495377,-500.0,0.00029315,2]
[327446297,1716077495386,-500.0,0.00029315,2]
[327446298,1716077495394,-500.0,0.00029315,2]
[327446299,1716077495403,-151.0,0.00029315,7]
[327446300,1716077495412,-500.0,0.00029315,2]
[327446301,1716077495422,-500.0,0.00029315,2]
[327446302,1716077495431,-774.08,0.00029315,2]
[327446303,1716077495440,-750.89,0.00029315,2]
[327446304,1716077495449,-151.0,0.00029315,7]
[327446305,1716077495459,-500.0,0.00029315,2]
[327446306,1716077495468,-500.0,0.00029315,2]
[327446307,1716077495477,-500.0,0.00029315,2]
[327446308,1716077495486,-1264.74,0.00029315,2]
[327446309,1716077495496,-500.0,0.00029315,2]
[327446310,1716077495505,-500.0,0.00029315,2]
[327446311,1716077495515,-732.31,0.00029315,2]
[327446312,1716077495524,-500.0,0.00029315,2]
[327446313,1716077495533,-500.0,0.00029315,2]